fUSD/lending_fUSD_20250103
["ID","MTS","AMOUNT","RATE_DAILY","PERIOD"]
[347524138,1735902643167,-593.93200393,9.262e-05,2]
[347524139,1735902643177,-1015.73,9.262e-05,2]
[347524140,1735902643186,-706.43,9.262e-05,2]
[347524141,1735902643196,-615.16,9.262e-05,2]
[347524142,1735902643206,-500.0,9.262e-05,2]
[347524143,1735902643218,-1156.62,9.262e-05,2]
[347524144,1735902643227,-1822.94,9.262e-05,2]
[347524145,1735902643236,-1380.09,9.262e-05,2]
[347524146,1735902643246,-530.29,9.262e-05,2]
[347524147,1735902643256,-500.0,9.262e-05,2]
[347524148,1735902643266,-500.0,9.262e-05,2]
[347524149,1735902643275,-672.85,9.262e-05,2]
[347524150,1735902643284,-1517.94,9.262e-05,2]
[347524151,1735902643295,-500.0,9.262e-05,2]
[347524152,1735902643305,-1524.87,9.262e-05,2]
[347524153,1735902643314,-1411.73,9.262e-05,2]
[347524154,1735902643324,-2077.46,9.262e-05,2]
[347524155,1735902643334,-517.51,9.262e-05,2]
[347524156,1735902643344,-500.0,9.262e-05,2]
[347524157,1735902643353,-804.03,9.262e-05,2]
[347524158,1735902643363,-1145.78,9.262e-05,2]
[347524159,1735902643372,-4614.0,9.262e-05,2]
[347524160,1735902643383,-500.0,9.262e-05,2]
[347524161,1735902643393,-608.64,9.262e-05,2]
[347524162,1735902643403,-500.0,9.262e-05,2]
[347524163,1735902643412,-692.0,9.262e-05,2]
[347524164,1735902643422,-500.0,9.262e-05,2]
[347524165,1735902643431,-500.0,9.262e-05,2]
[347524166,1735902643441,-500.0,9.262e-05,2]
[347524167,1735902643450,-945.48,9.262e-05,2]
[347524168,1735902643460,-500.0,9.262e-05,2]
[347524169,1735902643471,-500.0,9.262e-05,2]
[347524170,1735902643480,-1149.19,9.262e-05,2]
[347524171,1735902643490,-1349.95,9.262e-05,2]
[347524172,1735902643500,-639.05,9.262e-05,2]
[347524173,1735902643509,-1900.46,9.262e-05,2]
[347524174,1735902643519,-500.0,9.262e-05,2]
[347524175,1735902643529,-580.1,9.262e-05,2]
[347524176,1735902643539,-500.0,9.262e-05,2]
[347524177,1735902643548,-1510.31,9.262e-05,2]
[347524178,1735902643558,-155.442969,9.262e-05,2]
[347524179,1735902643568,-500.0,9.262e-05,2]
[347524180,1735902643577,-1796.34,9.262e-05,2]
[347524181,1735902643587,-500.0,9.262e-05,2]
[347524182,1735902643596,-1226.74,9.262e-05,2]
[347524183,1735902643606,-500.0,9.262e-05,2]
[347524184,1735902643616,-10541.96,9.262e-05,2]
[347524185,1735902643629,-1675.89,9.262e-05,2]
[347524186,1735902643640,-2216.04,9.262e-05,2]
[347524187,1735902643650,-500.0,9.262e-05,2]
[347524188,1735902643659,-1760.03,9.262e-05,2]
[347524189,1735902643670,-5481.26,9.262e-05,2]
[347524190,1735902643680,-521.99,9.262e-05,2]
[347524191,1735902643690,-2059.96,9.262e-05,2]
[347524192,1735902643699,-1619.57,9.262e-05,2]
[347524193,1735902643709,-1460.72,9.262e-05,2]
[347524194,1735902643719,-851.46,9.262e-05,2]
[347524195,1735902643729,-617.78,9.262e-05,2]
[347524196,1735902643738,-500.0,9.262e-05,2]
[347524197,1735902643748,-500.0,9.262e-05,2]
[347524198,1735902643758,-500.0,9.262e-05,2]
[347524199,1735902643768,-500.0,9.262e-05,2]
[347524205,1735902644055,-2332.77,9.262e-05,2]
[347524206,1735902644065,-966.34,9.262e-05,2]
[347524207,1735902644074,-500.0,9.262e-05,2]
[347524208,1735902644084,-638.02,9.262e-05,2]
[347524209,1735902644093,-660.3,9.262e-05,2]
[347524210,1735902644103,-1511.85,9.262e-05,2]
[347524211,1735902644113,-500.0,9.262e-05,2]
[347524212,1735902644123,-903.8,9.262e-05,2]
[347524213,1735902644133,-676.41,9.262e-05,2]
[347524214,1735902644143,-1076.62,9.262e-05,2]
[347524215,1735902644153,-500.0,9.262e-05,2]
[347524216,1735902644163,-1223.3,9.262e-05,2]
[347524217,1735902644172,-500.0,9.262e-05,2]
[347524218,1735902644182,-502.64085407,9.262e-05,2]
[347524219,1735902644192,-12166.17,9.262e-05,2]
[347524220,1735902644202,-500.0,9.262e-05,2]
[347524221,1735902644212,-1151.64,9.262e-05,2]
[347524222,1735902644225,-916.62,9.262e-05,2]
[347524223,1735902644235,-500.0,9.262e-05,2]
[347524224,1735902644245,-1661.08,9.262e-05,2]
[347524225,1735902644254,-727.62,9.262e-05,2]
[347524226,1735902644264,-3374.63,9.262e-05,2]
[347524227,1735902644275,-875.99,9.262e-05,2]
[347524228,1735902644284,-1742.66,9.262e-05,2]
[347524229,1735902644294,-614.30035022,9.262e-05,2]
[347524230,1735902644303,-2399.82,9.262e-05,2]
[347524231,1735902644312,-780.56,9.263e-05,2]
[347524232,1735902644322,-653.01,9.263e-05,2]
[347524233,1735902644331,-559.07,9.263e-05,2]
[347524234,1735902644341,-500.0,9.263e-05,2]
[347524235,1735902644351,-1252.01,9.263e-05,2]
[347524236,1735902644360,-1227.09,9.263e-05,2]
[347524237,1735902644370,-509.53778894,9.263e-05,2]
[347524238,1735902644381,-1323.27,9.263e-05,2]
[347524239,1735902644390,-523.87,9.263e-05,2]
[347524240,1735902644400,-1391.71,9.263e-05,2]
[347524242,1735902644410,-500.0,9.263e-05,2]
[347524244,1735902644419,-500.0,9.263e-05,2]
[347524246,1735902644429,-500.0,9.263e-05,2]
[347524247,1735902644439,-500.0,9.263e-05,2]
[347524249,1735902644448,-500.0,9.263e-05,2]
[347524250,1735902644457,-1227.17,9.263e-05,2]
[347524251,1735902644467,-500.0,9.263e-05,2]
[347524252,1735902644478,-500.0,9.263e-05,2]
[347524253,1735902644488,-915.6,9.263e-05,2]
[347524254,1735902644498,-500.0,9.263e-05,2]
[347524255,1735902644507,-576.57,9.263e-05,2]
[347524256,1735902644516,-1054.89,9.263e-05,2]
[347524257,1735902644526,-500.0,9.263e-05,2]
[347524258,1735902644535,-500.0,9.263e-05,2]
[347524259,1735902644545,-1068.53,9.263e-05,2]
[347524260,1735902644554,-500.0,9.263e-05,2]
[347524261,1735902644564,-500.0,9.263e-05,2]
[347524262,1735902644574,-500.0,9.263e-05,2]
[347524263,1735902644583,-709.73,9.263e-05,2]
[347524264,1735902644592,-500.0,9.263e-05,2]
[347524265,1735902644602,-599.87,9.263e-05,2]
[347524266,1735902644611,-500.0,9.263e-05,2]
[347524267,1735902644620,-628.6,9.263e-05,2]
[347524268,1735902644631,-500.0,9.263e-05,2]
[347524269,1735902644640,-1144.43,9.263e-05,2]
[347524270,1735902644650,-500.0,9.263e-05,2]
[347524271,1735902644659,-521.88,9.263e-05,2]
[347524272,1735902644668,-674.5,9.263e-05,2]
[347524273,1735902644678,-500.0,9.263e-05,2]
[347524274,1735902644687,-500.0,9.263e-05,2]
[347524275,1735902644697,-500.0,9.263e-05,2]
[347524276,1735902644706,-673.1,9.263e-05,2]
[347524277,1735902644715,-500.0,9.263e-05,2]
[347524278,1735902644726,-582.62,9.263e-05,2]
[347524279,1735902644735,-500.0,9.263e-05,2]
[347524280,1735902644745,-801.02,9.263e-05,2]
[347524281,1735902644754,-884.42,9.263e-05,2]
[347524282,1735902644764,-911.07,9.263e-05,2]
[347524283,1735902644774,-502.63527972,9.263e-05,2]
[347524284,1735902644784,-500.0,9.263e-05,2]
[347524285,1735902644794,-500.0,9.263e-05,2]
[347524286,1735902644803,-506.27399574,9.263e-05,2]
[347524287,1735902644812,-500.0,9.263e-05,2]
[347524288,1735902644822,-500.0,9.263e-05,2]
[347524289,1735902644831,-500.0,9.263e-05,2]
[347524290,1735902644842,-1053.44,9.263e-05,2]
[347524291,1735902644851,-1233.55,9.263e-05,2]
[347524292,1735902644864,-500.0,9.263e-05,2]
[347524293,1735902644874,-500.0,9.263e-05,2]
[347524294,1735902644883,-500.0,9.263e-05,2]
[347524295,1735902644893,-500.0,9.263e-05,2]
[347524296,1735902644903,-656.78,9.263e-05,2]
[347524297,1735902644912,-764.36,9.263e-05,2]
[347524298,1735902644922,-222.07236187,9.263e-05,2]
[347524299,1735902644931,-500.0,9.263e-05,2]
[347524300,1735902644940,-500.0,9.263e-05,2]
[347524301,1735902644950,-500.0,9.263e-05,2]
[347524302,1735902644960,-500.0,9.263e-05,2]
[347524303,1735902644971,-500.0,9.263e-05,2]
[347524304,1735902644981,-500.0,9.263e-05,2]
[347524305,1735902644990,-500.0,9.263e-05,2]
[347524306,1735902645000,-500.0,9.263e-05,2]
[347524307,1735902645010,-634.89,9.263e-05,2]
[347524308,1735902645020,-500.0,9.263e-05,2]
[347524309,1735902645029,-595.66,9.263e-05,2]
[347524310,1735902645039,-500.0,9.263e-05,2]
[347524311,1735902645048,-500.0,9.263e-05,2]
[347524312,1735902645058,-711.71,9.263e-05,2]
[347524313,1735902645067,-541.47,9.263e-05,2]
[347524314,1735902645077,-693.25,9.263e-05,2]
[347524315,1735902645087,-500.0,9.263e-05,2]
[347524316,1735902645097,-500.0,9.263e-05,2]
[347524317,1735902645106,-500.0,9.263e-05,2]
[347524318,1735902645116,-500.0,9.263e-05,2]
[347524319,1735902645126,-625.45,9.263e-05,2]
[347524320,1735902645136,-500.0,9.263e-05,2]
[347524321,1735902645146,-512.04,9.263e-05,2]
[347524322,1735902645156,-500.0,9.263e-05,2]
[347524323,1735902645166,-500.0,9.263e-05,2]
[347524324,1735902645175,-813.12,9.263e-05,2]
[347524325,1735902645185,-812.9,9.263e-05,2]
[347524326,1735902645195,-500.0,9.263e-05,2]
[347524327,1735902645205,-500.0,9.263e-05,2]
[347524328,1735902645215,-1220.81,9.263e-05,2]
[347524329,1735902645227,-500.0,9.263e-05,2]
[347524330,1735902645236,-500.0,9.263e-05,2]
[347524331,1735902645247,-500.0,9.263e-05,2]
[347524332,1735902645256,-614.7,9.263e-05,2]
[347524333,1735902645266,-500.0,9.263e-05,2]
[347524334,1735902645275,-896.49,9.263e-05,2]
[347524335,1735902645285,-1262.47,9.263e-05,2]
[347524336,1735902645294,-1369.32,9.263e-05,2]
[347524337,1735902645304,-517.28,9.263e-05,2]
[347524338,1735902645314,-500.0,9.263e-05,2]
[347524339,1735902645323,-500.0,9.263e-05,2]
[347524340,1735902645333,-816.56,9.263e-05,2]
[347524341,1735902645343,-830.64,9.263e-05,2]
[347524342,1735902645353,-500.0,9.263e-05,2]
[347524343,1735902645362,-683.14,9.263e-05,2]
[347524344,1735902645371,-1021.8,9.263e-05,2]
[347524345,1735902645383,-500.35,9.263e-05,2]
[347524346,1735902645392,-500.0,9.263e-05,2]
[347524347,1735902645402,-533.57,9.263e-05,2]
[347524348,1735902645411,-784.7,9.263e-05,2]
[347524349,1735902645421,-500.0,9.263e-05,2]
[347524350,1735902645430,-500.0,9.263e-05,2]
[347524351,1735902645440,-541.26,9.263e-05,2]
[347524352,1735902645450,-500.0,9.263e-05,2]
[347524353,1735902645460,-500.0,9.263e-05,2]
[347524354,1735902645469,-653.92,9.263e-05,2]
[347524355,1735902645479,-636.8,9.263e-05,2]
[347524356,1735902645488,-707.91,9.263e-05,2]
[347524357,1735902645498,-1358.79,9.263e-05,2]
[347524358,1735902645508,-500.0,9.263e-05,2]
[347524359,1735902645518,-500.0,9.263e-05,2]
[347524360,1735902645527,-869.81,9.263e-05,2]
[347524361,1735902645536,-830.95,9.263e-05,2]
[347524362,1735902645546,-342.59835895,9.263e-05,2]
[347524363,1735902645555,-798.56,9.263e-05,2]
[347524364,1735902645565,-500.0,9.263e-05,2]
[347524365,1735902645575,-3851.0,9.263e-05,2]
[347524366,1735902645584,-500.0,9.263e-05,2]
[347524367,1735902645594,-500.0,9.263e-05,2]
[347524368,1735902645604,-500.0,9.263e-05,2]
[347524369,1735902645614,-584.86,9.263e-05,2]
[347524370,1735902645623,-813.04,9.263e-05,2]
[347524371,1735902645633,-993.19,9.263e-05,2]
[347524372,1735902645643,-815.19,9.263e-05,2]
[347524373,1735902645653,-500.0,9.263e-05,2]
[347524374,1735902645663,-500.0,9.263e-05,2]
[347524375,1735902645672,-796.91,9.263e-05,2]
[347524376,1735902645682,-817.35,9.263e-05,2]
[347524377,1735902645691,-4093.24,9.263e-05,2]
[347524378,1735902645702,-500.0,9.263e-05,2]
[347524379,1735902645713,-500.0,9.263e-05,2]
[347524380,1735902645724,-3815.52,9.263e-05,2]
[347524381,1735902645733,-3713.19,9.263e-05,2]
[347524382,1735902645743,-500.0,9.263e-05,2]
[347524383,1735902645752,-500.0,9.263e-05,2]
[347524384,1735902645762,-632.52,9.263e-05,2]
[347524385,1735902645771,-500.0,9.264e-05,2]
[347524386,1735902645781,-693.49,9.264e-05,2]
[347524387,1735902645791,-1115.6,9.264e-05,2]
[347524388,1735902645800,-1280.57,9.264e-05,2]
[347524389,1735902645809,-500.0,9.264e-05,2]
[347524390,1735902645819,-2327.52,9.264e-05,2]
[347524391,1735902645829,-1521.69,9.264e-05,2]
[347524392,1735902645838,-3030.51,9.264e-05,2]
[347524393,1735902645848,-2645.26,9.264e-05,2]
[347524394,1735902645857,-500.0,9.264e-05,2]
[347524395,1735902645867,-500.0,9.264e-05,2]
[347524396,1735902645877,-1230.57,9.264e-05,2]
[347524397,1735902645887,-1235.9,9.264e-05,2]
[347524398,1735902645896,-500.0,9.264e-05,2]
[347524399,1735902645906,-500.0,9.264e-05,2]
[347524400,1735902645915,-500.0,9.264e-05,2]
[347524401,1735902645926,-1210.43,9.264e-05,2]
[347524402,1735902645935,-500.0,9.264e-05,2]
[347524403,1735902645945,-1026.84,9.264e-05,2]
[347524404,1735902645954,-1079.56,9.264e-05,2]
[347524405,1735902645964,-1883.91,9.264e-05,2]
[347524406,1735902645973,-1357.54,9.264e-05,2]
[347524407,1735902645982,-1153.0,9.264e-05,2]
[347524408,1735902645992,-1124.09,9.264e-05,2]
[347524409,1735902646002,-1020.12,9.264e-05,2]
[347524410,1735902646011,-1791.53,9.264e-05,2]
[347524411,1735902646021,-1251.43,9.264e-05,2]
[347524412,1735902646031,-8661.07,9.264e-05,2]
[347524413,1735902646040,-1465.6,9.264e-05,2]
[347524414,1735902646050,-500.0,9.264e-05,2]
[347524415,1735902646060,-1847.1,9.264e-05,2]
[347524416,1735902646070,-857.59,9.264e-05,2]
[347524417,1735902646079,-1950.49,9.264e-05,2]
[347524418,1735902646091,-1196.94,9.264e-05,2]
[347524419,1735902646100,-7959.96,9.264e-05,2]
[347524420,1735902646110,-500.0,9.264e-05,2]
[347524421,1735902646120,-1496.58,9.264e-05,2]
[347524422,1735902646130,-2070.69,9.264e-05,2]
[347524423,1735902646140,-4461.69,9.264e-05,2]
[347524424,1735902646150,-7826.16,9.264e-05,2]
[347524425,1735902646160,-58.06739876,9.264e-05,2]
[347524458,1735902646995,-928.38260124,9.264e-05,2]
[347524461,1735902647007,-1217.19,9.264e-05,2]
[347524463,1735902647018,-926.96,9.264e-05,2]
[347524465,1735902647030,-967.33,9.264e-05,2]
[347524467,1735902647042,-2908.2468732,9.264e-05,2]
[347524501,1735902651763,-1672.7531268,9.264e-05,2]
[347524502,1735902651772,-3980.57,9.264e-05,2]
[347524503,1735902651782,-1241.91,9.264e-05,2]
[347524504,1735902651791,-3339.94,9.264e-05,2]
[347524505,1735902651801,-5318.83,9.264e-05,2]
[347524506,1735902651810,-927.06,9.264e-05,2]
[347524507,1735902651819,-3430.29,9.264e-05,2]
[347524508,1735902651829,-884.51,9.264e-05,2]
[347524509,1735902651839,-1235.14,9.264e-05,2]
[347524510,1735902651848,-3995.3,9.264e-05,2]
[347524511,1735902651858,-573.74,9.264e-05,2]
[347524512,1735902651868,-1514.6,9.264e-05,2]
[347524513,1735902651877,-531.15,9.264e-05,2]
[347524514,1735902651888,-698.72,9.265e-05,2]
[347524515,1735902651897,-500.0,9.265e-05,2]
[347524516,1735902651907,-500.0,9.265e-05,2]
[347524517,1735902651916,-500.0,9.265e-05,2]
[347524518,1735902651925,-500.0,9.265e-05,2]
[347524519,1735902651934,-500.0,9.265e-05,2]
[347524520,1735902651944,-537.91,9.265e-05,2]
[347524521,1735902651953,-500.0,9.265e-05,2]
[347524522,1735902651963,-538.32,9.265e-05,2]
[347524523,1735902651973,-1251.68,9.265e-05,2]
[347524524,1735902651982,-500.0,9.265e-05,2]
[347524525,1735902651991,-534.72,9.265e-05,2]
[347524526,1735902652001,-806.29,9.265e-05,2]
[347524527,1735902652011,-500.0,9.265e-05,2]
[347524528,1735902652021,-942.31,9.265e-05,2]
[347524529,1735902652031,-1064.21,9.265e-05,2]
[347524530,1735902652041,-500.0,9.265e-05,2]
[347524531,1735902652050,-3997.41,9.265e-05,2]
[347524532,1735902652060,-941.65,9.265e-05,2]
[347524533,1735902652069,-796.03,9.265e-05,2]
[347524534,1735902652079,-786.91,9.265e-05,2]
[347524535,1735902652089,-1429.54,9.265e-05,2]
[347524536,1735902652099,-1440.49,9.265e-05,2]
[347524537,1735902652109,-500.0,9.265e-05,2]
[347524538,1735902652119,-500.0,9.265e-05,2]
[347524539,1735902652130,-6560.79,9.265e-05,2]
[347524540,1735902652140,-500.0,9.265e-05,2]
[347524541,1735902652150,-653.17,9.265e-05,2]
[347524542,1735902652160,-500.0,9.265e-05,2]
[347524543,1735902652169,-543.35,9.265e-05,2]
[347524544,1735902652179,-3028.75,9.265e-05,2]
[347524545,1735902652189,-1117.72,9.265e-05,2]
[347524546,1735902652200,-500.0,9.265e-05,2]
[347524547,1735902652209,-2124.26,9.265e-05,2]
[347524548,1735902652221,-500.0,9.265e-05,2]
[347524549,1735902652231,-766.8,9.265e-05,2]
[347524550,1735902652241,-500.0,9.265e-05,2]
[347524551,1735902652251,-1331.21,9.265e-05,2]
[347524552,1735902652260,-1014.94,9.265e-05,2]
[347524553,1735902652269,-749.02,9.265e-05,2]
[347524554,1735902652279,-1521.31,9.265e-05,2]
[347524555,1735902652289,-508.6,9.265e-05,2]
[347524556,1735902652298,-500.0,9.265e-05,2]
[347524557,1735902652308,-2715.58,9.265e-05,2]
[347524558,1735902652317,-500.0,9.265e-05,2]
[347524559,1735902652328,-1772.95,9.265e-05,2]
[347524560,1735902652337,-4144.26,9.265e-05,2]
[347524561,1735902652346,-8237.28,9.265e-05,2]
[347524562,1735902652357,-7746.7,9.265e-05,2]
[347524563,1735902652367,-7545.1,9.265e-05,2]
[347524564,1735902652377,-1215.77,9.265e-05,2]
[347524565,1735902652387,-2183.91,9.265e-05,2]
[347524566,1735902652397,-3007.74,9.265e-05,2]
[347524567,1735902652407,-4518.86,9.265e-05,2]
[347524568,1735902652416,-4513.25,9.265e-05,2]
[347524569,1735902652426,-1064.17,9.265e-05,2]
[347524570,1735902652435,-3419.95,9.265e-05,2]
[347524571,1735902652445,-4862.53,9.265e-05,2]
[347524572,1735902652455,-2571.54,9.265e-05,2]
[347524573,1735902652465,-10230.25,9.265e-05,2]
[347524574,1735902652474,-7234.48,9.265e-05,2]
[347524575,1735902652485,-500.0,9.265e-05,2]
[347524576,1735902652494,-7558.99,9.265e-05,2]
[347524577,1735902652503,-3613.22,9.265e-05,2]
[347524578,1735902652512,-3381.61,9.265e-05,2]
[347524579,1735902652522,-1391.99922396,9.266e-05,3]
[347524580,1735902652532,-150.0,9.322e-05,2]
[347524581,1735902652542,-1057.0,9.361e-05,2]
[347524582,1735902652551,-322.16907594,9.364e-05,3]
[347524583,1735902652560,-150.0,9.428e-05,2]
[347524584,1735902652571,-429.51484354,9.488e-05,2]
[347524585,1735902652582,-46994.40738596,9.534e-05,2]
[347524586,1735902654550,-602.36438288,8.988e-05,2]
[347524587,1735902654562,-1485.68561712,8.988e-05,2]
[347524588,1735902654573,-500.0,8.988e-05,2]
[347524589,1735902654583,-3524.8,8.99e-05,2]
[347524590,1735902654593,-1634.46,8.991e-05,2]
[347524591,1735902654604,-2088.05,9.262e-05,2]
[347524592,1735902654615,-500.0,9.262e-05,2]
[347524593,1735902654626,-3524.8,9.264e-05,2]
[347524594,1735902654636,-1634.46,9.265e-05,2]
[347524595,1735902654645,-3307.74438608,9.534e-05,2]
[347524596,1735902654656,-1917.47,9.534e-05,2]
[347524597,1735902654715,-31071.07093688,9.534e-05,2]
[347524598,1735902654727,-1455.02450611,9.534e-05,2]
[347524599,1735902654800,-3633.41128201,9.534e-05,2]
[347524600,1735902654838,-4394.34582229,9.534e-05,2]
[347524601,1735902654850,-47207.50000003,9.534e-05,2]
[347524602,1735902654862,-25164.44905001,9.534e-05,2]
[347524603,1735902654874,-7410.32969147,9.534e-05,2]
[347524604,1735902654893,-334.86334167,9.534e-05,2]
[347524605,1735902654904,-623.64337499,9.534e-05,2]
[347524606,1735902654916,-34756.97629344,9.534e-05,2]
[347524607,1735902654927,-9651.19090946,9.534e-05,2]
[347524608,1735902654938,-95150.0,9.534e-05,2]
[347524609,1735902654960,-1123.04690619,9.534e-05,2]
[347524610,1735902655402,-3142.80000004,9.534e-05,2]
[347524611,1735902655414,-3977.6552138,9.534e-05,2]
[347524612,1735902655423,-113.26180151,9.534e-05,2]
[347524613,1735902655434,-36.73819849,9.534e-05,2]
[347524614,1735902655444,-150.0,9.534e-05,2]
[347524615,1735902655454,-10457.66,9.535e-05,2]
[347524616,1735902655464,-710.59,9.535e-05,2]
[347524617,1735902655473,-1382.88,9.535e-05,2]
[347524618,1735902655482,-738.19,9.535e-05,2]
[347524619,1735902655491,-2501.07,9.535e-05,2]
[347524620,1735902655500,-3090.84,9.535e-05,2]
[347524621,1735902655510,-2174.44,9.535e-05,2]
[347524622,1735902655521,-5779.08,9.535e-05,2]
[347524623,1735902655530,-1940.13,9.535e-05,2]
[347524624,1735902655540,-754.93,9.535e-05,2]
[347524625,1735902655548,-3283.70269091,9.535e-05,2]
[347524626,1735902655560,-842.20452302,9.535e-05,2]
[347524627,1735902655636,-1627.05411205,9.535e-05,2]
[347524628,1735902655648,-870.1874432,9.535e-05,2]
[347524629,1735902655666,-4838.88123082,9.535e-05,2]
[347524630,1735902655675,-5370.15,9.535e-05,2]
[347524631,1735902655684,-1615.76,9.535e-05,2]
[347524632,1735902655694,-1787.65,9.535e-05,2]
[347524633,1735902655703,-9061.24,9.535e-05,2]
[347524634,1735902655712,-4436.76,9.535e-05,2]
[347524635,1735902655722,-2433.9,9.535e-05,2]
[347524636,1735902655731,-4608.85,9.535e-05,2]
[347524637,1735902655741,-5268.56,9.535e-05,2]
[347524638,1735902655751,-1280.83,9.535e-05,2]
[347524639,1735902655760,-1345.6,9.535e-05,2]
[347524640,1735902655770,-3977.18,9.535e-05,2]
[347524641,1735902655779,-500.0,9.535e-05,2]
[347524642,1735902655788,-1597.41115708,9.535e-05,2]
[347524643,1735902655800,-343.48470714,9.535e-05,2]
[347524644,1735902655811,-340.60882801,9.535e-05,2]
[347524645,1735902655827,-884.99999998,9.535e-05,2]
[347524646,1735902655839,-2177.34861967,9.535e-05,2]
[347524647,1735902656394,-1586.18443852,9.535e-05,2]
[347524648,1735902656405,-1451.2822496,9.535e-05,2]
[347524649,1735902656415,-614.08295771,9.535e-05,2]
[347524650,1735902656440,-354.82704229,9.535e-05,2]
[347524651,1735902656449,-206.34295771,9.535e-05,2]
[347524652,1735902657510,-300.75301768,9.535e-05,2]
[347524653,1735902657536,-337.6699995,9.535e-05,2]
[347524654,1735902657548,-1564.77266409,9.535e-05,2]
[347524655,1735902657560,-1395.88136102,9.535e-05,2]
[347524656,1735902657569,-500.0,9.535e-05,2]
[347524657,1735902657578,-146.48413898,9.535e-05,2]
[347524658,1735902657590,-3120.44707707,9.535e-05,2]
[347524659,1735902657605,-576.10878395,9.535e-05,2]
[347524660,1735902657615,-2038.7,9.535e-05,2]
[347524661,1735902657625,-711.8,9.535e-05,2]
[347524662,1735902657634,-624.39121605,9.535e-05,2]
[347524665,1735903258790,-46961.0,0.0001589,20]
[347524666,1735903503857,158.12369978,9.535e-05,30]
[347524667,1735903526492,708.45690802,0.0002,120]
[347524672,1735903586103,2464.14046299,0.0002,120]
[347524679,1735903752182,-300.0,7.938e-05,2]
[347524680,1735903752203,-3693.325168,7.939e-05,2]
[347524681,1735903792365,350.0,0.0002,120]
[347524716,1735903832531,-20206.674832,7.939e-05,2]
[347524717,1735903832542,-1500.0,7.949e-05,2]
[347524718,1735903832552,-185.4,7.949e-05,2]
[347524719,1735903832562,-200.0,8.12e-05,2]
[347524720,1735903832572,-250.0,8.213e-05,2]
[347524721,1735903832582,-250.0,8.213e-05,2]
[347524722,1735903832594,-1595.88,8.219e-05,2]
[347524723,1735903832604,-250.0,8.219e-05,2]
[347524724,1735903832614,-155.57,8.316e-05,2]
[347524725,1735903832624,-235.09,8.377e-05,2]
[347524726,1735903832633,-1000.0,8.408e-05,2]
[347524727,1735903832643,-160.73,8.444e-05,2]
[347524728,1735903832652,-2084.35,8.547e-05,2]
[347524729,1735903832661,-547.33,8.552e-05,2]
[347524730,1735903832671,-9999.99,8.552e-05,2]
[347524731,1735903832680,-150.99,8.552e-05,2]
[347524732,1735903832689,-150.0,8.581e-05,2]
[347524733,1735903832698,-500.0,8.766e-05,2]
[347524734,1735903832708,-500.0,8.8e-05,3]
[347524735,1735903832717,-1671.45,8.886e-05,2]
[347524736,1735903832726,-1100.0,8.9e-05,3]
[347524737,1735903832736,-500.0,8.904e-05,2]
[347524738,1735903832745,-1957.4,8.904e-05,2]
[347524739,1735903832755,-3000.63779576,8.977e-05,2]
[347524740,1735903832764,-500.0,8.985e-05,2]
[347524741,1735903832773,-500.0,8.985e-05,2]
[347524742,1735903832783,-500.0,8.986e-05,2]
[347524743,1735903832796,-581.16,8.986e-05,2]
[347524744,1735903832806,-1343.21,8.986e-05,2]
[347524745,1735903832816,-921.62,8.986e-05,2]
[347524746,1735903832826,-500.0,8.986e-05,2]
[347524747,1735903832836,-500.0,8.986e-05,2]
[347524748,1735903832847,-847.24,8.986e-05,2]
[347524749,1735903832857,-1416.5,8.986e-05,2]
[347524750,1735903832871,-500.0,8.986e-05,2]
[347524751,1735903832880,-500.0,8.986e-05,2]
[347524752,1735903832890,-1339.06,8.986e-05,2]
[347524753,1735903832899,-500.0,8.986e-05,2]
[347524754,1735903832908,-1342.34,8.986e-05,2]
[347524755,1735903832919,-1066.66,8.986e-05,2]
[347524757,1735903832928,-822.34,8.986e-05,2]
[347524759,1735903832937,-716.38,8.986e-05,2]
[347524761,1735903832948,-1257.11,8.986e-05,2]
[347524762,1735903832957,-843.53,8.986e-05,2]
[347524763,1735903832966,-1247.47,8.986e-05,2]
[347524765,1735903832976,-500.0,8.986e-05,2]
[347524766,1735903832985,-592.69,8.986e-05,2]